Cogmind - Beta 13 @@@ ROGUE MODE // 2024.05.07 @ 18:13:37 Player: Compound1080 Result: Destroyed by G-47 Trooper with Particle Gun Performance ------------- Evolutions (1) 500 Regions Visited (6) 1200 Robots Destroyed (46) 230 Value Destroyed (862) 862 Prototype IDs (24) 480 Alien Tech Used (0) 0 Bonus (300) 300 TOTAL SCORE: 3572 Bonus ------- Aligned with FarCom 300 Cogmind --------- Core Integrity 0/400 Matter 285/300 Energy 100/100 System Corruption 0% Temperature Cool (18) Movement Core (250) Ox4 Location -8/Mines Parts ------- > --- POWER (1) -------- (None) > --- PROPULSION (2) --- (None) > --- UTILITY (4) ------ Medium Storage Unit Structural Scanner > --- WEAPON (2) ------- Heavy Hammer > --- INVENTORY (10) --- Hover Unit Hover Unit Hover Unit Hover Unit Improved Hover Unit Weight Redist. System Terrain Scanner ECM Suite Grenade Launcher Peak State ------------ > --- POWER ------------ Improved Ion Engine > --- PROPULSION ------- Aluminum Leg > --- UTILITY ---------- Medium Storage Unit Structural Scanner Seismic Detector Cloak of Protection > --- WEAPON ----------- Improved Assault Rifle Improved Assault Rifle > --- INVENTORY -------- Improved Ion Engine Hover Unit Hover Unit Hover Unit Hover Unit Improved Hover Unit Weight Redist. System ECM Suite Heavy Hammer [Rating: 21] Favorites ----------- Power Light Ion Engine Engine Light Ion Engine Propulsion Aluminum Leg Leg Aluminum Leg Wheel Compact Wheel Utility Medium Storage Unit Device Seismic Detector Storage Medium Storage Unit Protection Light Armor Plating Weapon Light Assault Rifle Energy Gun Small Laser Ballistic Gun Light Assault Rifle Launcher Grenade Launcher Impact Weapon Heavy Hammer Build | -11 -10 -10 -9 -9 -9 -8 ------- Run | Yrd Mat Min Mat Min Exi Min Slots Evolved 2 | . . . 2 . . . Power . | . . . . . . . Propulsion . | . . . . . . . Utility 2 | . . . 2 . . . Weapon . | . . . . . . . Parts Attached 38 | 5 8 3 16 1 1 4 Power 7 | 1 1 1 3 . . 1 Engine 7 | 1 1 1 3 . . 1 Core . | . . . . . . . Reactor . | . . . . . . . Propulsion 7 | 2 1 1 2 . . 1 Treads . | . . . . . . . Leg 5 | 2 1 1 . . . 1 Wheel 2 | . . . 2 . . . Hover . | . . . . . . . Flight . | . . . . . . . Utility 7 | 1 2 1 2 . 1 . Device 3 | . . . 2 . 1 . Storage 3 | 1 2 . . . . . Processor . | . . . . . . . Hackware . | . . . . . . . Protection 1 | . . 1 . . . . Artifact . | . . . . . . . Weapon 17 | 1 4 . 9 1 . 2 Energy Gun 1 | . 1 . . . . . Energy Cannon . | . . . . . . . Ballistic Gun 10 | 1 3 . 5 . . 1 Ballistic Cannon . | . . . . . . . Launcher 2 | . . . 1 1 . . Special Weapon . | . . . . . . . Impact Weapon 4 | . . . 3 . . 1 Slashing Weapon . | . . . . . . . Piercing Weapon . | . . . . . . . Special Melee Weapon . | . . . . . . . Unidentified Prototypes 1 | . . . 1 . . . Parts Lost 11 | . 1 . 4 . . 6 Power 2 | . 1 . . . . 1 Propulsion 5 | . . . 2 . . 3 Utility 2 | . . . 1 . . 1 Weapon 2 | . . . 1 . . 1 Highest Loss Streak 4 | . 1 . 2 . . 4 To Critical Strikes . | . . . . . . . Average Slot Usage (%) 84 | . 77 93 80 88 96 82 Engine 12 | . 13 14 11 11 11 11 Leg 16 | . 24 28 13 . . 9 Wheel 3 | . . . 2 22 22 . Device 11 | . . . 15 22 29 30 Storage 12 | . 14 14 11 11 11 11 Protection 3 | . . 7 6 . . . Ballistic Gun 18 | . 23 28 13 11 11 19 Launcher 1 | . . . . 11 11 . Impact Weapon 2 | . . . 7 . . . Naked Turns . | . . . . . . . Heaviest Build 33 | 9 25 20 25 25 33 33 Greatest Support 32 | 20 20 20 32 32 32 10 Greatest Overweight (x) 10 | 2 1 . 6 . 1 10 Average Overweight (x) . | . . . 1 . . 3 Largest Inventory Capacity 15 | 8 15 10 10 10 10 10 Average Capacity 9 | 7 9 10 10 10 10 10 Most Carried 10 | 5 10 10 10 10 10 10 Average Carried 9 | 3 8 9 9 10 10 9 Final Capacity 10 | 8 10 10 10 10 10 10 Final Carried 10 | 5 10 10 10 10 10 9 Class Distribution -------------------- 76% | Mutant 23% | Scavenger-Mutant Dominant Class ---------------- Mutant | -10/Materials Mutant | -10/Mines Scavenger-Mutant | -9/Materials Mutant | -9/Mines Mutant | -9/Exiles Mutant | -8/Mines Resources | -11 -10 -10 -9 -9 -9 -8 ----------- Run | Yrd Mat Min Mat Min Exi Min Matter Collected 875 | 190 196 56 242 54 . 137 Remotely . | . . . . . . . Salvage Created 1178 | . 288 66 649 31 . 144 Parts 79 | . 16 7 38 13 . 5 Haulers Intercepted 4 | . 1 . 3 . . . Recyclers Shooed 1 | . . . . . . 1 Parts Field Recycled . | . . . . . . . Retrieved Matter . | . . . . . . . Parts Self-Destructed . | . . . . . . . Prevented . | . . . . . . . Kills | -11 -10 -10 -9 -9 -9 -8 ------- Run | Yrd Mat Min Mat Min Exi Min Combat Hostiles Destroyed 34 | . 9 2 12 7 . 4 Guns 23 | . 9 2 9 . . 3 AOE 11 | . . . 3 7 . 1 Classes Destroyed 10 | . 3 2 4 . . 1 Worker 2 | . . 1 1 . . . Builder 3 | . . . 2 . . 1 Tunneler 1 | . . 1 . . . . Hauler 4 | . 1 . 3 . . . Recycler 1 | . . . 1 . . . Mechanic 1 | . . . 1 . . . Swarmer 21 | . 6 2 6 7 . . Grunt 7 | . 3 . 2 . . 2 Duelist 2 | . . . . . . 2 Sentry 4 | . . . 4 . . . Best Kill Streak 4 | . 3 2 3 4 . 3 Combat Bots Only 4 | . 3 2 3 4 . 3 Max Kills in Single Turn 3 | . 1 1 3 3 . 2 Gunslinging 1 | . . . . . . 1 Exploded 3 | . . . 3 3 . 1 Melee . | . . . . . . . Uniques/NPCs Destroyed . | . . . . . . . Combat | -11 -10 -10 -9 -9 -9 -8 -------- Run | Yrd Mat Min Mat Min Exi Min Hostile Shots Fired 229 | . 74 9 73 11 . 62 Missed 49 | . 17 2 15 2 . 13 Damage Taken 2418 | . 597 53 689 91 . 988 Core 578 | . 173 . 138 28 . 239 Absorbed by Shields . | . . . . . . . Core Remaining (%) 65 | 100 . 30 . . . . Volleys Fired 120 | . 49 8 35 5 . 23 Largest 2 | . 2 2 2 1 . 2 Hottest 60 | . 60 40 43 30 . 46 Shots Fired 197 | . 88 16 60 5 . 28 Gun 187 | . 88 16 59 . . 24 Cannon . | . . . . . . . Launcher 10 | . . . 1 5 . 4 Special . | . . . . . . . Kinetic 170 | . 71 16 59 . . 24 Thermal 17 | . 17 . . . . . Explosive 10 | . . . 1 5 . 4 Electromagnetic . | . . . . . . . Robot Hit Streak 21 | . 7 3 21 3 . 20 Robot Miss Streak 3 | . 3 2 3 3 . 1 Penetration Max . | . . . . . . . Secondary Targets 2 | . 1 . . . . 1 Max Gunslinging Chain 1 | . 1 . . . . 1 Shots Hit Robots 145 | . 55 10 53 2 . 25 Core Hits 67 | . 18 6 23 8 . 12 Critical Kills . | . . . . . . . Critical Parts Destroyed 1 | . . . 1 . . . Critical Strikes 1 | . . . 1 . . . Smash 1 | . . . 1 . . . Melee Attacks 17 | . . . 16 . . 1 Impact 17 | . . . 16 . . 1 Slashing . | . . . . . . . Piercing . | . . . . . . . Sneak Attacks 9 | . . . 9 . . . Combat Hostiles . | . . . . . . . Follow-up Attacks . | . . . . . . . Damage Inflicted 2823 | . 469 76 1343 351 . 584 Guns 1245 | . 469 76 375 . . 325 Cannons . | . . . . . . . Explosions 746 | . . . 136 351 . 259 Melee 832 | . . . 832 . . . Ramming . | . . . . . . . Kinetic 1156 | . 380 76 375 . . 325 Thermal 89 | . 89 . . . . . Explosive 746 | . . . 136 351 . 259 Electromagnetic . | . . . . . . . Impact 832 | . . . 832 . . . Slashing . | . . . . . . . Piercing . | . . . . . . . Highest Corruption . | . . . . . . . Average Corruption . | . . . . . . . Corruption Purged . | . . . . . . . Corruption Blocked . | . . . . . . . Overload Shots . | . . . . . . . Overflow Damage 416 | . . . 416 . . . Projectiles . | . . . . . . . Explosions . | . . . . . . . Melee 416 | . . . 416 . . . Knockbacks 2 | . . . 2 . . . Impact 2 | . . . 2 . . . Kinetic . | . . . . . . . Secondary . | . . . . . . . Self-Inflicted Damage 134 | . . . . 28 . 106 Shots 4 | . . . . 1 . 3 Rammed . | . . . . . . . Targets Rammed . | . . . . . . . Kicked . | . . . . . . . Crushed . | . . . . . . . Highest Temperature 52 | . 52 12 27 . . 11 Average Temperature 15 | . 20 6 10 . . 6 Received Heat Transfer 849 | . 219 . 243 . . 387 Siege Activations . | . . . . . . . Robots Corrupted . | . . . . . . . Combat Hostiles . | . . . . . . . Parts Fried 9 | . . . 9 . . . Impact Corruptions 12 | . . . 12 . . . Robots Melted . | . . . . . . . Combat Hostiles . | . . . . . . . Parts Melted . | . . . . . . . Heat Transferred 200 | . 200 . . . . . Parts Sabotaged . | . . . . . . . Parts Stolen . | . . . . . . . Parts Stripped . | . . . . . . . Power Chain Reactions . | . . . . . . . Alert | -11 -10 -10 -9 -9 -9 -8 ------- Run | Yrd Mat Min Mat Min Exi Min Peak Influence 309 | . 297 70 188 309 . 109 Initial 61 | . . 12 27 61 . . Average 79 | . 107 12 80 211 . 85 Maximum Alert Level 1 | . 1 . . 1 . . Low Security (%) 95 | 100 90 100 100 61 . 100 Level 1 4 | . 9 . . 38 . . Level 2 . | . . . . . . . Level 3 . | . . . . . . . Level 4 . | . . . . . . . Level 5 . | . . . . . . . High Security . | . . . . . . . Max Security . | . . . . . . . Squads Dispatched 4 | . 3 . 1 . . . Investigation 1 | . 1 . . . . . Extermination . | . . . . . . . Reinforcement 3 | . 2 . 1 . . . Assault . | . . . . . . . Garrison . | . . . . . . . Intercept . | . . . . . . . Searches Triggered . | . . . . . . . Construction Impeded . | . . . . . . . Haulers Reinforced . | . . . . . . . Active Scanning Responses . | . . . . . . . Cargo Convoy Interrupts . | . . . . . . . Stealth | -11 -10 -10 -9 -9 -9 -8 --------- Run | Yrd Mat Min Mat Min Exi Min Distress Signals 1 | . 1 . . . . . Communications Jammed . | . . . . . . . Distress Signals . | . . . . . . . Times Spotted 61 | . 27 3 18 7 . 6 Peak Tracking Total 5 | . 5 3 3 4 . 3 Tactical Retreats 3 | . 1 1 1 . . . Traps | -11 -10 -10 -9 -9 -9 -8 ------- Run | Yrd Mat Min Mat Min Exi Min Traps Triggered 1 | . 1 . . . . . Indirectly . | . . . . . . . Trap Hack Attempts . | . . . . . . . Triggered . | . . . . . . . Disarmed . | . . . . . . . Reprogrammed . | . . . . . . . Reused . | . . . . . . . Traps Extracted . | . . . . . . . Installed . | . . . . . . . Triggered . | . . . . . . . Machines | -11 -10 -10 -9 -9 -9 -8 ---------- Run | Yrd Mat Min Mat Min Exi Min Machines Disabled 6 | . . . 1 4 . 1 Max in Single Turn 2 | . . . 1 2 . 1 Machines Repaired . | . . . . . . . Machines Dismantled . | . . . . . . . Machines Sabotaged . | . . . . . . . Overloaded Fab Kills . | . . . . . . . Hacking | -11 -10 -10 -9 -9 -9 -8 --------- Run | Yrd Mat Min Mat Min Exi Min Machines Accessed 6 | . 2 . 2 1 1 . Terminals 5 | . 2 . 2 1 . . Fabricators . | . . . . . . . Repair Stations . | . . . . . . . Recycling Units . | . . . . . . . Scanalyzers . | . . . . . . . Garrison Access . | . . . . . . . Total Hacks 13 | . 7 . 4 1 1 . Successful 7 | . 3 . 3 . 1 . Failed 6 | . 4 . 1 1 . . Catastrophic 3 | . 1 . 1 1 . . Database Lockouts . | . . . . . . . Manual 10 | . 6 . 2 1 1 . Terminals 12 | . 7 . 4 1 . . Fabricators . | . . . . . . . Repair Stations . | . . . . . . . Recycling Units . | . . . . . . . Scanalyzers . | . . . . . . . Garrison Access . | . . . . . . . Terminal Hacks 7 | . 3 . 3 . 1 . Branch Access Points 2 | . 1 . 1 . . . Alert Level 1 | . . . 1 . . . Locate Traps 1 | . . . 1 . . . Zone Layout 2 | . 2 . . . . . Derelict Proto ID Bank 1 | . . . . . 1 . Fabricator Hacks . | . . . . . . . Repair Station Hacks . | . . . . . . . Recycling Unit Hacks . | . . . . . . . Scanalyzer . | . . . . . . . Garrison Access Hacks . | . . . . . . . Unauthorized Hacks . | . . . . . . . Terminals . | . . . . . . . Fabricators . | . . . . . . . Repair Stations . | . . . . . . . Recycling Units . | . . . . . . . Scanalyzers . | . . . . . . . Garrison Access . | . . . . . . . Data Cores Recovered . | . . . . . . . Used . | . . . . . . . Hacking Detections 4 | . 2 . 1 1 . . Full Trace Events . | . . . . . . . Feedback Events . | . . . . . . . Feedback Blocked . | . . . . . . . Robot Schematics Acquired . | . . . . . . . Robots Built . | . . . . . . . Authchips . | . . . . . . . Time . | . . . . . . . Total Robot Build Rating . | . . . . . . . Part Schematics Acquired . | . . . . . . . Parts Built . | . . . . . . . Authchips . | . . . . . . . Time . | . . . . . . . Total Part Build Rating . | . . . . . . . Parts Repaired . | . . . . . . . Time . | . . . . . . . Parts Recycled . | . . . . . . . Recycled Matter . | . . . . . . . Retrieved Matter . | . . . . . . . Retrieved Components . | . . . . . . . Parts Scanalyzed . | . . . . . . . Part Schematics Acquired . | . . . . . . . Parts Damaged . | . . . . . . . Bothacking | -11 -10 -10 -9 -9 -9 -8 ------------ Run | Yrd Mat Min Mat Min Exi Min Used RIF Installer . | . . . . . . . Robots Hacked . | . . . . . . . Non-combat . | . . . . . . . Combat . | . . . . . . . Robot Hacks Applied . | . . . . . . . Relay Couplers Released . | . . . . . . . Fabnet Peak Effective % . | . . . . . . . Robots Rewired . | . . . . . . . Allies Hacked . | . . . . . . . Hacks Repelled . | . . . . . . . Allies | -11 -10 -10 -9 -9 -9 -8 -------- Run | Yrd Mat Min Mat Min Exi Min Total Allies . | . . . . . . . Largest Group . | . . . . . . . Highest-Rated Group . | . . . . . . . Highest-Rated Ally . | . . . . . . . Total Orders . | . . . . . . . Ally Attacks . | . . . . . . . Total Damage . | . . . . . . . Kills . | . . . . . . . Allies Corrupted . | . . . . . . . Allies Melted . | . . . . . . . Intel | -11 -10 -10 -9 -9 -9 -8 ------- Run | Yrd Mat Min Mat Min Exi Min Robot Analysis Total . | . . . . . . . Derelict Logs Recovered 1 | . . 1 . . . . Drone Launches . | . . . . . . . Drone Recoveries . | . . . . . . . Exploration | -11 -10 -10 -9 -9 -9 -8 ------------- Run | Yrd Mat Min Mat Min Exi Min Turns Passed 3404 | 55 836 570 1171 123 361 288 Spaces Moved 1978 | 41 500 449 488 112 329 59 Core 92 | 10 . . 76 . . 6 Treads . | . . . . . . . Legs 1357 | 31 500 449 324 . . 53 Wheels 529 | . . . 88 112 329 . Hover . | . . . . . . . Flight . | . . . . . . . Fastest Speed 50 | 50 120 120 100 100 100 330 Average Speed 145 | 105 135 120 192 100 109 345 Slowest Speed 550 | 150 190 120 350 100 115 550 Overloaded Moves . | . . . . . . . Propulsion Burnouts . | . . . . . . . Robots Hopped . | . . . . . . . Cave-ins Triggered . | . . . . . . . Exploration Rate (%) 44 | 4 68 84 40 30 71 12 Regions Visited 6 Branch Regions 4 Pre-discovered Areas . | . . . . . . . Known Exits Taken 2 | . 1 . 1 . . . Unknown Exits Taken 4 | 1 . 1 . 1 1 . Scrap Searched 3 | . . 1 . 2 . . Spaces Dug 2 | . . . 2 . . . Terrain Destroyed 46 | . . . 8 18 . 20 Melee 2 | . . . 2 . . . Projectile . | . . . . . . . AOE 44 | . . . 6 18 . 20 Terrain Rammed . | . . . . . . . Walls Destroyed . | . . . . . . . Machines Disabled . | . . . . . . . Actions | -11 -10 -10 -9 -9 -9 -8 --------- Run | Yrd Mat Min Mat Min Exi Min Total 2302 | 50 586 467 639 117 329 114 Wait 95 | . 8 2 63 . . 22 Move 1972 | 40 499 448 487 111 328 59 Hop . | . . . . . . . Pick Up 35 | 5 12 3 12 . . 3 Fast Attach 15 | 5 5 1 3 . 1 . Attach 9 | . 1 . 5 . . 3 Detach . | . . . . . . . Swap 14 | . 2 2 8 1 . 1 Drop 25 | . 10 3 10 . . 2 Fire 120 | . 49 8 35 5 . 23 Melee 17 | . . . 16 . . 1 Ram . | . . . . . . . Kick . | . . . . . . . Crush . | . . . . . . . Escape Stasis . | . . . . . . . Rewire . | . . . . . . . Trap . | . . . . . . . Miscellaneous . | . . . . . . . Route ------- -11/Scrapyard -10/Materials (discovered 3 exits: *Mat / *Min x2) -10/Mines -9/Materials (discovered 3 exits: [*Mat] / *Min x2) -9/Mines -9/Exiles -8/Mines History --------- Turn | Location | Event 20 | -11/Scrapyard | Discovered new exit (range 14) 56 | -11/Scrapyard | Entered Materials 114 | -10/Materials | Identified exit to Mines 332 | -10/Materials | Build established: Mutant 587 | -10/Materials | Discovered new exit (range 15) 741 | -10/Materials | Core integrity fell below 50% 892 | -10/Materials | Entered Mines 895 | -10/Mines | Met a Derelict bent on vengeance 948 | -10/Mines | Learned 2 Materials zone layouts 986 | -10/Mines | YI-UF0 nonchalantly dropped a Grenade Launcher on the ground 1152 | -10/Mines | Joined a pair of Derelicts in attacking an 0b10 outpost 1436 | -10/Mines | Discovered new exit (range 6) 1462 | -10/Mines | Entered Materials 1462 | -9/Materials | Evolved 2 slots: Utility x2 1761 | -9/Materials | Build established: Scavenger-Mutant 1791 | -9/Materials | Discovered new exit (range 16) 2565 | -9/Materials | Build established: Mutant 2594 | -9/Materials | Discovered new exit (range 9) 2615 | -9/Materials | Identified exit to Mines 2633 | -9/Materials | Entered Mines 2751 | -9/Mines | Deemed a non-threat by the Exiles lab entrance 2751 | -9/Mines | Discovered new exit (range 6) 2756 | -9/Mines | Entered Exiles 2782 | -9/Exiles | Met 8R-AWN 2799 | -9/Exiles | Met EX-HEX 2828 | -9/Exiles | Met EX-BIN 2842 | -9/Exiles | Aligned with FarCom system 2843 | -9/Exiles | Given EX-Vault access code 2867 | -9/Exiles | Opened EX-Vault 2874 | -9/Exiles | Found Cloak of Protection 2899 | -9/Exiles | Warned to stay clear of 0b10 Research branches 2935 | -9/Exiles | Met EX-DEC 3107 | -9/Exiles | Discovered new exit (range 10) 3117 | -9/Exiles | Left Exiles lab with Cloak of Protection 3117 | -9/Exiles | Entered Mines 3126 | -8/Mines | Core integrity fell below 50% 3388 | -8/Mines | Core integrity fell below 20% 3405 | -8/Mines | Destroyed by G-47 Trooper with Particle Gun Last Messages --------------- 03186_ U-05 Engineer builds a Wall. 03191_ U-05 Engineer lays Concrete. 03205_ U-05 Engineer builds a Wall. 03209_ U-05 Engineer destroyed. 03214_ Dropped Imp. Ion Engine. 03218_ Acquired Terrain Scanner. 03291_ U-05 Engineer builds a Wall. 03317_ U-05 Engineer lays Concrete. 03366_ Imp. Assault Rifle severed. 03373_ Cloak of Protection severed. 03373_ Seismic Detector destroyed. 03375_ L-31 Rogue destroyed. 03384_ R-06 Scavenger collects Imp. Aluminum Leg. 03390_ Aluminum Leg destroyed. 03391_ K-01 Serf collects debris. 03394_ Imp. Assault Rifle destroyed. 03399_ Acquired 39 matter. 03400_ K-01 Serf collects debris. 03405_ Imp. Ion Engine destroyed. Map ----- +----------------------------------------------------+ | ???????????????????????????????????????? | | ???????????????????????????????????????? | | ???????????????????????????????????????? | | ???????????????????????????????????????? | | ???????????????????????????????????????? | | ???????????????????????????????????????? | | ???????????????????????????????????????? | | ???????????????????????????????????????? | | ???????????????????????????????????????? | | ??????????????????????????????######???? | | ?????????????????????????????#########?? | | ?????????????????????????????### #####? | | ?????????????????????????????## #### | | ?????????????????????????????## ### | | ??????????????????####???????## """ ## | | ??????????????????### ???????## """ ## | | ?????????????????### ?? ###### """ ## | | ?????????????????### ???####### ### | | ?????????????????## ??## ###? | | ?????????????????## #### ### ###? | | ?????????????????## #### #### #### | | ?????????????????### ### ##### ### | | ??????????????????### ##!##### ## | | ?????????????????????##t##[#### ## | | ?????????????????????## ## | | ?????????????????????## g@ ## | | ?????????????????????## ##### ### ### | | ?????????????????????##g ##### ######### | | ?????????????????????## ##### ## ####? | | ??????????????????? ###%! ##??? | | ??????????????? ### * ##??? | | ??????????? ######### % ###?? | | ?????????? ### ######## % ###?? | | ????????????? ###????????## [ # ##?? | | ?????????????????????????### ###?? | | ?????????????????????????### " " ###?? | | ??????????????????????????## """" ###??? | | ??????????????????????????## ###??? | | ??????????????????????????##########???? | | ??????????????????????????##########???? | | ???????????????????????????????????????? | | ???????????????????????????????????????? | | ???????????????????????????????????????? | | ???????????????????????????????????????? | | ???????????????????????????????????????? | | ???????????????????????????????????????? | | ???????????????????????????????????????? | | ???????????????????????????????????????? | | ???????????????????????????????????????? | | ???????????????????????????????????????? | +----------------------------------------------------+ Best States ------------- Heat Dissipation 28 Energy Generation 12 Energy Capacity 265 Matter Stores 300 Matter Capacity 300 Sight Range 16 Terrain Scan Density 10 Cloak Strength 5 Armor Coverage 150 Evasion (%) 55 Item Schematics ----------------- None Robot Schematics ------------------ None Fabricated ------------ Nothing Alien Tech Used ----------------- None Achievements -------------- None Challenges ------------ None Game ------ Seed BehemothColdRailgun Manual? 0 Play Time 00:34:32 Cumulative 15.6 hours Start 2024.05.07 @ 17:34:40 End 2024.05.07 @ 18:13:37 Sessions 1 Manual Loads 0 Difficulty Rogue Special Mode None Game No. 31 Rogue 31 Adventurer 0 Explorer 0 Win Type - Total 0 Types 0/0/0/0/0/0/0/0/0 Lore% 17 Gallery% 17 Achievement% 16 Wizard Run 0 Options --------- Layout 1 ASCII 0 Keyboard 0 Movement Mouse Keybinds 0 Fullscreen 2 Font 24/Smallcaps Map View 50x35 Zoom Use 0% Tactical HUD 1 Map Filters NONE Filters NONE Steam 1 RUN: 25c118ea-ea62-4124-aa31-5b03a58e927b